[Event "84th ESP-ch 2019"]
[Site "Marbella"]
[Date "2019.11.19"]
[Round "4.2"]
[White "Cuenca Jimenez, Jose Fernando"]
[Black "Salgado Lopez, Ivan"]
[Result "1/2-1/2"]
[ECO "B00"]
[WhiteElo "2523"]
[BlackElo "2594"]
[Annotator "ChessBase"]
[PlyCount "72"]
[EventDate "2019.11.16"]
[EventType "swiss"]
[EventCountry "ESP"]
[SourceTitle "playchess.com"]
[Source "ChessBase"]
[SourceQuality "1"]
[TimeControl "5400+30"]

1. e4 {[%emt 0:00:00]} d6 {[%emt 0:03:49]} 2. d4 {[%emt 0:02:44]} Nf6 {[%emt 0:00:08]} 3. f3 {[%emt 0:06:17]} e6 {[%emt 0:02:17]} 4. Be3 {[%emt 0:02:51]} Be7 {[%emt 0:00:11]} 5. Nc3 {[%emt 0:02:50]} a6 {[%emt 0:00:38]} 6. Qd2 {[%emt 0:06:58]} O-O {[%emt 0:00:38]} 7. Nge2 {[%emt 0:06:20]} b5 {[%emt 0:01:12]} 8. g4 {[%emt 0:09:35]} c5 {[%emt 0:03:09]} 9. g5 {[%emt 0:07:26]} Nfd7 {[%emt 0:00:26]} 10. h4 {[%emt 0:07:15]} Nc6 {[%emt 0:01:27]} 11. Bg2 {[%emt 0:05:14]} b4 {[%emt 0:07:10]} 12. Na4 {[%emt 0:02:58]} cxd4 {[%emt 0:02:22]} 13. Nxd4 {[%emt 0:00:56]} Bb7 {[%emt 0:00:13]} 14. b3 {[%emt 0:05:37]} d5 {[%emt 0:02:26]} 15. exd5 {[%emt 0:03:58]} Nxd4 {[%emt 0:00:52]} 16. Bxd4 {[%emt 0:00:12]} Bxd5 {[%emt 0:00:20]} 17. f4 {[%emt 0:00:48]} Qa5 {[%emt 0:15:29]} 18. Bxd5 {[%emt 0:10:20]} Qxd5 {[%emt 0:00:25]} 19. O-O-O {[%emt 0:00:07]} Rad8 {[%emt 0:07:09]} 20. Rhf1 {[%emt 0:04:17]} Rfe8 {[%emt 0:15:15]} 21. Qe3 {[%emt 0:02:49]} Qf5 {[%emt 0:02:52]} 22. Qd3 {[%emt 0:06:20]} Qxd3 {[%emt 0:07:57]} 23. Rxd3 {[%emt 0:00:09]} f6 {[%emt 0:02:36]} 24. Rfd1 {[%emt 0:00:44]} Nf8 {[%emt 0:01:33]} 25. gxf6 {[%emt 0:01:20]} gxf6 {[%emt 0:00:44]} 26. h5 {[%emt 0:00:20]} Rd5 {[%emt 0:02:49]} 27. Rg3+ {[%emt 0:00:59]} Kf7 {[%emt 0:00:59]} 28. Rdg1 {[%emt 0:02:05]} Red8 {[%emt 0:03:06]} 29. Rg7+ {[%emt 0:00:10]} Ke8 {[%emt 0:00:04]} 30. Rxe7+ {[%emt 0:01:13]} Kxe7 {[%emt 0:00:08]} 31. Rg7+ {[%emt 0:00:02]} Ke8 {[%emt 0:01:18]} 32. Bxf6 {[%emt 0:00:04]} R8d7 {[%emt 0:02:58]} 33. h6 {[%emt 0:00:01]} Rh5 {[%emt 0:01:44]} 34. Nb6 {[%emt 0:01:10]} Rh1+ {[%emt 0:03:35]} 35. Kb2 {[%emt 0:00:01]} Rf7 {[%emt 0:00:35]} 36. Bg5 {[%emt 0:01:10]} Ng6 {[%emt 0:00:26]} 1/2-1/2

[Event "84th ESP-ch 2019"]
[Site "Marbella"]
[Date "2019.11.19"]
[Round "4.6"]
[White "Santos Ruiz, Miguel"]
[Black "Ladron De Guevara Pinto, Paolo"]
[Result "1-0"]
[ECO "C91"]
[WhiteElo "2583"]
[BlackElo "2442"]
[Annotator "ChessBase"]
[PlyCount "101"]
[EventDate "2019.11.16"]
[EventType "swiss"]
[EventCountry "ESP"]
[SourceTitle "playchess.com"]
[Source "ChessBase"]
[SourceQuality "1"]
[TimeControl "5400+30"]

1. e4 {[%emt 0:00:00]} e5 {[%emt 0:00:20]} 2. Nf3 {[%emt 0:00:00]} Nc6 {[%emt 0:00:04]} 3. Bb5 {[%emt 0:00:00]} a6 {[%emt 0:02:28]} 4. Ba4 {[%emt 0:00:11]} Nf6 {[%emt 0:00:35]} 5. O-O {[%emt 0:00:10]} Be7 {[%emt 0:00:16]} 6. Re1 {[%emt 0:00:12]} b5 {[%emt 0:00:20]} 7. Bb3 {[%emt 0:00:03]} d6 {[%emt 0:00:12]} 8. c3 {[%emt 0:00:06]} O-O {[%emt 0:00:05]} 9. d4 {[%emt 0:00:02]} Bg4 {[%emt 0:00:10]} 10. Be3 {[%emt 0:00:13]} Bh5 {[%emt 0:06:45]} 11. Nbd2 {[%emt 0:02:16]} Na5 {[%emt 0:05:34]} 12. dxe5 {[%emt 0:09:31]} dxe5 {[%emt 0:00:31]} 13. h3 {[%emt 0:00:15]} Nxb3 {[%emt 0:15:06]} 14. Qxb3 {[%emt 0:01:49]} Bd6 {[%emt 0:25:08]} 15. c4 {[%emt 0:04:12]} Bxf3 {[%emt 0:05:46]} 16. Nxf3 {[%emt 0:02:18]} bxc4 {[%emt 0:14:16]} 17. Qxc4 {[%emt 0:01:02]} Qb8 {[%emt 0:00:03]} 18. Qc2 {[%emt 0:06:10]} Qb7 {[%emt 0:00:34]} 19. Nd2 {[%emt 0:10:59]} Rfb8 {[%emt 0:01:51]} 20. Rab1 {[%emt 0:00:52]} a5 {[%emt 0:00:06]} 21. f3 {[%emt 0:06:39]} a4 {[%emt 0:00:15]} 22. Nc4 {[%emt 0:01:53]} Ne8 {[%emt 0:01:10]} 23. Red1 {[%emt 0:05:29]} Ra6 {[%emt 0:00:33]} 24. Rd3 {[%emt 0:04:18]} Qa8 {[%emt 0:03:34]} 25. Rc1 {[%emt 0:13:28]} Rc6 {[%emt 0:01:19]} 26. Qd1 {[%emt 0:04:03]} Rb5 {[%emt 0:03:11]} 27. Kh1 {[%emt 0:03:25]} h6 {[%emt 0:00:28]} 28. a3 {[%emt 0:01:40]} Ra6 {[%emt 0:04:20]} 29. Bd2 {[%emt 0:02:50]} Rb8 {[%emt 0:01:53]} 30. Bc3 {[%emt 0:02:53]} Rc6 {[%emt 0:01:29]} 31. Nxd6 {[%emt 0:01:14]} cxd6 {[%emt 0:00:12]} 32. Rc2 {[%emt 0:01:06]} Rbc8 {[%emt 0:00:17]} 33. Rcd2 {[%emt 0:00:06]} Qa6 {[%emt 0:00:25]} 34. Kh2 {[%emt 0:00:22]} Kh7 {[%emt 0:00:43]} 35. Rd5 {[%emt 0:01:19]} Rc5 {[%emt 0:00:05]} 36. Rxc5 {[%emt 0:03:10]} Rxc5 {[%emt 0:00:05]} 37. Bb4 {[%emt 0:00:01]} Rc6 {[%emt 0:04:10]} 38. Rd5 {[%emt 0:00:17]} f5 {[%emt 0:02:09]} 39. exf5 {[%emt 0:00:49]} Qc4 {[%emt 0:00:06]} 40. Qd2 {[%emt 0:00:37]} Qb3 {[%emt 0:01:58]} 41. Qd3 {[%emt 0:02:47]} Qxd3 {[%emt 0:01:04]} 42. Rxd3 {[%emt 0:00:04]} Kg8 {[%emt 0:00:21]} 43. Rd5 {[%emt 0:00:12]} Kf7 {[%emt 0:00:26]} 44. Ra5 {[%emt 0:01:56]} Kf6 {[%emt 0:01:00]} 45. Ra8 {[%emt 0:00:37]} Nc7 {[%emt 0:00:35]} 46. Rc8 {[%emt 0:00:08]} Ke7 {[%emt 0:00:06]} 47. Ba5 {[%emt 0:00:20]} Kd7 {[%emt 0:00:03]} 48. Rxc7+ {[%emt 0:02:43]} Rxc7 {[%emt 0:00:05]} 49. Bxc7 {[%emt 0:00:04]} Kxc7 {[%emt 0:00:05]} 50. g4 {[%emt 0:00:08]} d5 {[%emt 0:01:17]} 51. Kg2 {[%emt 0:00:44]} 1-0

[Event "84th ESP-ch 2019"]
[Site "Marbella"]
[Date "2019.11.19"]
[Round "4.7"]
[White "Suarez Uriel, Adrian"]
[Black "Ibarra Jerez, Jose Carlos"]
[Result "0-1"]
[ECO "B40"]
[WhiteElo "2389"]
[BlackElo "2540"]
[Annotator "ChessBase"]
[PlyCount "88"]
[EventDate "2019.11.16"]
[EventType "swiss"]
[EventCountry "ESP"]
[SourceTitle "playchess.com"]
[Source "ChessBase"]
[SourceQuality "1"]
[TimeControl "5400+30"]

1. e4 {[%emt 0:00:00]} c5 {[%emt 0:00:02]} 2. Nf3 {[%emt 0:00:00]} e6 {[%emt 0:00:40]} 3. d4 {[%emt 0:00:06]} cxd4 {[%emt 0:00:27]} 4. Nxd4 {[%emt 0:00:04]} Nf6 {[%emt 0:00:50]} 5. Nc3 {[%emt 0:00:08]} Nc6 {[%emt 0:00:47]} 6. a3 {[%emt 0:01:54]} Be7 {[%emt 0:02:09]} 7. Be3 {[%emt 0:07:58]} O-O {[%emt 0:03:17]} 8. Be2 {[%emt 0:15:16]} d5 {[%emt 0:13:41]} 9. exd5 {[%emt 0:00:55]} Nxd5 {[%emt 0:00:12]} 10. Nxd5 {[%emt 0:00:22]} Qxd5 {[%emt 0:00:12]} 11. Bf3 {[%emt 0:04:05]} Qa5+ {[%emt 0:00:50]} 12. b4 {[%emt 0:01:00]} Qc7 {[%emt 0:00:11]} 13. Nxc6 {[%emt 0:00:50]} bxc6 {[%emt 0:00:14]} 14. Qd3 {[%emt 0:19:47]} e5 {[%emt 0:03:35]} 15. Qc4 {[%emt 0:06:31]} Bd7 {[%emt 0:16:26]} 16. O-O {[%emt 0:00:36]} Rfc8 {[%emt 0:05:37]} 17. Qa6 {[%emt 0:21:55]} Bf5 {[%emt 0:09:53]} 18. c4 {[%emt 0:03:12]} Bd3 {[%emt 0:13:27]} 19. Rfe1 {[%emt 0:00:08]} e4 {[%emt 0:00:53]} 20. Be2 {[%emt 0:00:35]} Bxe2 {[%emt 0:04:42]} 21. Rxe2 {[%emt 0:00:04]} Rd8 {[%emt 0:00:27]} 22. g3 {[%emt 0:03:00]} f5 {[%emt 0:03:58]} 23. b5 {[%emt 0:02:25]} Qe5 {[%emt 0:00:49]} 24. Rc1 {[%emt 0:00:31]} c5 {[%emt 0:10:24]} 25. Bf4 {[%emt 0:04:13]} Qf6 {[%emt 0:00:02]} 26. Qb7 {[%emt 0:00:46]} Bf8 {[%emt 0:02:23]} 27. h4 {[%emt 0:00:37]} Qb6 {[%emt 0:03:37]} 28. Qxb6 {[%emt 0:01:08]} axb6 {[%emt 0:00:01]} 29. Bc7 {[%emt 0:00:10]} Rd7 {[%emt 0:00:28]} 30. Be5 {[%emt 0:01:33]} Rxa3 {[%emt 0:00:11]} 31. Ree1 {[%emt 0:01:18]} Ra4 {[%emt 0:00:51]} 32. Rcd1 {[%emt 0:02:45]} Rd3 {[%emt 0:03:06]} 33. Ra1 {[%emt 0:01:07]} Rxc4 {[%emt 0:00:35]} 34. Ra6 {[%emt 0:00:25]} Rb4 {[%emt 0:00:33]} 35. Rxb6 {[%emt 0:00:04]} Rdb3 {[%emt 0:00:12]} 36. Rc6 {[%emt 0:01:35]} Rxb5 {[%emt 0:00:24]} 37. Rd1 {[%emt 0:00:31]} Rb1 {[%emt 0:00:07]} 38. Rxb1 {[%emt 0:00:04]} Rxb1+ {[%emt 0:00:03]} 39. Kg2 {[%emt 0:00:01]} Rb7 {[%emt 0:00:36]} 40. g4 {[%emt 0:00:18]} fxg4 {[%emt 0:00:33]} 41. Kg3 {[%emt 0:00:02]} h5 {[%emt 0:00:47]} 42. Kf4 {[%emt 0:00:18]} Rf7+ {[%emt 0:01:12]} 43. Kg5 {[%emt 0:00:27]} Kh7 {[%emt 0:00:15]} 44. Bg3 {[%emt 0:00:46]} g6 {[%emt 0:00:13]} 0-1

[Event "84th ESP-ch 2019"]
[Site "Marbella"]
[Date "2019.11.19"]
[Round "4.8"]
[White "Narciso Dublan, Marc"]
[Black "Garcia Ramos, Daniel"]
[Result "0-1"]
[ECO "A45"]
[WhiteElo "2517"]
[BlackElo "2350"]
[Annotator "ChessBase"]
[PlyCount "92"]
[EventDate "2019.11.16"]
[EventType "swiss"]
[EventCountry "ESP"]
[SourceTitle "playchess.com"]
[Source "ChessBase"]
[SourceQuality "1"]
[TimeControl "5400+30"]

1. d4 {[%emt 0:00:00]} Nf6 {[%emt 0:00:00]} 2. Bg5 {[%emt 0:00:00]} d5 {[%emt 0:00:00]} 3. e3 {[%emt 0:00:05]} Nbd7 {[%emt 0:00:40]} 4. c4 {[%emt 0:01:55]} Ne4 {[%emt 0:00:40]} 5. Bh4 {[%emt 0:00:36]} g5 {[%emt 0:04:55]} 6. Bg3 {[%emt 0:04:36]} h5 {[%emt 0:00:15]} 7. cxd5 {[%emt 0:06:42]} h4 {[%emt 0:21:06]} 8. Be5 {[%emt 0:00:33]} Nxe5 {[%emt 0:00:26]} 9. dxe5 {[%emt 0:00:25]} c6 {[%emt 0:00:06]} 10. Ne2 {[%emt 0:23:23]} e6 {[%emt 0:08:37]} 11. Nec3 {[%emt 0:04:52]} Nxc3 {[%emt 0:05:03]} 12. Nxc3 {[%emt 0:00:07]} exd5 {[%emt 0:00:34]} 13. Qd4 {[%emt 0:03:43]} Bg7 {[%emt 0:07:58]} 14. Bd3 {[%emt 0:03:22]} O-O {[%emt 0:14:58]} 15. O-O {[%emt 0:11:11]} f6 {[%emt 0:15:11]} 16. f4 {[%emt 0:01:58]} Qb6 {[%emt 0:00:36]} 17. fxg5 {[%emt 0:23:23]} Qxd4 {[%emt 0:02:08]} 18. exd4 {[%emt 0:00:04]} fxe5 {[%emt 0:00:48]} 19. Rxf8+ {[%emt 0:00:40]} Kxf8 {[%emt 0:00:06]} 20. Rf1+ {[%emt 0:00:36]} Ke7 {[%emt 0:00:37]} 21. dxe5 {[%emt 0:00:51]} Bxe5 {[%emt 0:00:30]} 22. Ne2 {[%emt 0:00:56]} Bxb2 {[%emt 0:03:57]} 23. Nf4 {[%emt 0:05:58]} Bd7 {[%emt 0:05:51]} 24. Ng6+ {[%emt 0:00:39]} Kd6 {[%emt 0:00:04]} 25. Nxh4 {[%emt 0:00:51]} c5 {[%emt 0:00:07]} 26. Bf5 {[%emt 0:04:53]} c4 {[%emt 0:02:51]} 27. g4 {[%emt 0:00:38]} Bd4+ {[%emt 0:03:20]} 28. Kg2 {[%emt 0:00:09]} Be3 {[%emt 0:00:42]} 29. g6 {[%emt 0:00:44]} c3 {[%emt 0:00:35]} 30. Bxd7 {[%emt 0:00:31]} Kxd7 {[%emt 0:00:08]} 31. Nf5 {[%emt 0:00:35]} Bd2 {[%emt 0:01:55]} 32. Nd4 {[%emt 0:00:20]} Rg8 {[%emt 0:00:25]} 33. Rf7+ {[%emt 0:00:37]} Kd6 {[%emt 0:00:38]} 34. g7 {[%emt 0:00:34]} Ke5 {[%emt 0:00:14]} 35. Nc2 {[%emt 0:00:29]} Ke4 {[%emt 0:00:32]} 36. Rd7 {[%emt 0:00:31]} a5 {[%emt 0:00:32]} 37. h4 {[%emt 0:00:31]} Kd3 {[%emt 0:00:25]} 38. Na3 {[%emt 0:00:06]} d4 {[%emt 0:00:07]} 39. h5 {[%emt 0:00:54]} Be3 {[%emt 0:01:04]} 40. Rxb7 {[%emt 0:00:30]} c2 {[%emt 0:00:28]} 41. Rb3+ {[%emt 0:00:23]} Kd2 {[%emt 0:00:07]} 42. Rb2 {[%emt 0:00:38]} d3 {[%emt 0:00:11]} 43. Nc4+ {[%emt 0:00:29]} Kc3 {[%emt 0:00:22]} 44. Nxe3 {[%emt 0:00:20]} Kxb2 {[%emt 0:00:11]} 45. h6 {[%emt 0:00:03]} c1=Q {[%emt 0:00:23]} 46. h7 {[%emt 0:00:09]} Qc8 {[%emt 0:00:38]} 0-1

[Event "84th ESP-ch 2019"]
[Site "Marbella"]
[Date "2019.11.19"]
[Round "4.9"]
[White "Bernabeu Lopez, Carlos Javier"]
[Black "Arizmendi Martinez, Julen Luis"]
[Result "0-1"]
[ECO "D38"]
[WhiteElo "2366"]
[BlackElo "2517"]
[Annotator "ChessBase"]
[PlyCount "98"]
[EventDate "2019.11.16"]
[EventType "swiss"]
[EventCountry "ESP"]
[SourceTitle "playchess.com"]
[Source "ChessBase"]
[SourceQuality "1"]
[TimeControl "5400+30"]

1. d4 {[%emt 0:00:00]} d5 {[%emt 0:06:39]} 2. c4 {[%emt 0:00:00]} e6 {[%emt 0:00:11]} 3. Nf3 {[%emt 0:00:00]} Nf6 {[%emt 0:00:38]} 4. Nc3 {[%emt 0:00:00]} Bb4 {[%emt 0:04:52]} 5. Qa4+ {[%emt 0:00:01]} Nc6 {[%emt 0:00:09]} 6. e3 {[%emt 0:00:03]} O-O {[%emt 0:01:30]} 7. Qc2 {[%emt 0:01:13]} b6 {[%emt 0:04:43]} 8. a3 {[%emt 0:02:28]} Bxc3+ {[%emt 0:02:24]} 9. Qxc3 {[%emt 0:01:05]} Ba6 {[%emt 0:07:45]} 10. b4 {[%emt 0:08:05]} dxc4 {[%emt 0:01:27]} 11. Bxc4 {[%emt 0:00:19]} Ne4 {[%emt 0:00:19]} 12. Qc2 {[%emt 0:01:22]} Bxc4 {[%emt 0:00:10]} 13. Qxc4 {[%emt 0:01:58]} Qd5 {[%emt 0:00:05]} 14. Qxd5 {[%emt 0:19:11]} exd5 {[%emt 0:00:08]} 15. Bd2 {[%emt 0:00:28]} Nd6 {[%emt 0:05:23]} 16. Rc1 {[%emt 0:02:28]} Nc4 {[%emt 0:02:48]} 17. b5 {[%emt 0:00:31]} Nd8 {[%emt 0:14:41]} 18. Bb4 {[%emt 0:02:50]} Re8 {[%emt 0:00:48]} 19. Nd2 {[%emt 0:01:36]} a5 {[%emt 0:04:29]} 20. bxa6 {[%emt 0:00:32]} b5 {[%emt 0:02:52]} 21. a4 {[%emt 0:22:34]} Nc6 {[%emt 0:14:08]} 22. Bc5 {[%emt 0:04:50]} Nxd2 {[%emt 0:03:33]} 23. Kxd2 {[%emt 0:00:05]} bxa4 {[%emt 0:00:37]} 24. a7 {[%emt 0:08:40]} Nxa7 {[%emt 0:02:40]} 25. Bxa7 {[%emt 0:00:55]} Rxa7 {[%emt 0:00:03]} 26. Rc5 {[%emt 0:00:45]} Rd8 {[%emt 0:05:52]} 27. Rhc1 {[%emt 0:01:29]} Rd7 {[%emt 0:00:25]} 28. Rb1 {[%emt 0:04:44]} Kf8 {[%emt 0:00:15]} 29. Rbb5 {[%emt 0:03:23]} a3 {[%emt 0:01:10]} 30. Rb1 {[%emt 0:03:13]} Ke7 {[%emt 0:00:38]} 31. Ra1 {[%emt 0:02:55]} Rd8 {[%emt 0:00:50]} 32. Ra2 {[%emt 0:00:33]} Kd6 {[%emt 0:05:33]} 33. Rc3 {[%emt 0:00:11]} Rda8 {[%emt 0:00:32]} 34. Ke2 {[%emt 0:01:15]} Ra5 {[%emt 0:01:20]} 35. Kd2 {[%emt 0:00:43]} R8a6 {[%emt 0:01:11]} 36. h3 {[%emt 0:00:50]} Kd7 {[%emt 0:00:50]} 37. Ke2 {[%emt 0:00:32]} g5 {[%emt 0:01:08]} 38. Kd3 {[%emt 0:01:19]} f5 {[%emt 0:01:09]} 39. f3 {[%emt 0:01:29]} h5 {[%emt 0:03:26]} 40. Rb3 {[%emt 0:01:15]} h4 {[%emt 0:01:29]} 41. Rc3 {[%emt 0:02:32]} Kd6 {[%emt 0:00:17]} 42. Kd2 {[%emt 0:01:00]} Rb6 {[%emt 0:00:41]} 43. Kc2 {[%emt 0:00:52]} Rc6 {[%emt 0:00:07]} 44. Rxc6+ {[%emt 0:01:15]} Kxc6 {[%emt 0:00:02]} 45. Kb3 {[%emt 0:00:28]} Kb5 {[%emt 0:00:13]} 46. Kc3 {[%emt 0:00:31]} Ra8 {[%emt 0:01:29]} 47. Kb3 {[%emt 0:00:09]} Ra6 {[%emt 0:00:14]} 48. Kc3 {[%emt 0:00:36]} Ka4 {[%emt 0:00:33]} 49. Ra1 {[%emt 0:00:06]} Rb6 {[%emt 0:00:11]} 0-1

[Event "84th ESP-ch 2019"]
[Site "Marbella"]
[Date "2019.11.19"]
[Round "4.10"]
[White "Espinosa Aranda, Angel"]
[Black "Pazos Porta, Antonio"]
[Result "1-0"]
[ECO "A48"]
[WhiteElo "2511"]
[BlackElo "2345"]
[Annotator "ChessBase"]
[PlyCount "89"]
[EventDate "2019.11.16"]
[EventType "swiss"]
[EventCountry "ESP"]
[SourceTitle "playchess.com"]
[Source "ChessBase"]
[SourceQuality "1"]
[TimeControl "5400+30"]

1. d4 {[%emt 0:00:00]} Nf6 {[%emt 0:08:14]} 2. Nf3 {[%emt 0:00:09]} g6 {[%emt 0:01:08]} 3. c4 {[%emt 0:00:29]} Bg7 {[%emt 0:01:34]} 4. Nc3 {[%emt 0:00:20]} d6 {[%emt 0:02:16]} 5. e4 {[%emt 0:00:15]} Bg4 {[%emt 0:06:51]} 6. Be2 {[%emt 0:01:19]} Nfd7 {[%emt 0:03:33]} 7. Be3 {[%emt 0:00:19]} c5 {[%emt 0:05:38]} 8. d5 {[%emt 0:01:08]} a6 {[%emt 0:08:17]} 9. Qd2 {[%emt 0:06:58]} Qa5 {[%emt 0:06:58]} 10. O-O {[%emt 0:10:33]} O-O {[%emt 0:10:04]} 11. a4 {[%emt 0:11:27]} Bxf3 {[%emt 0:09:09]} 12. gxf3 {[%emt 0:01:14]} f5 {[%emt 0:17:48]} 13. Kh1 {[%emt 0:07:45]} Qb4 14. exf5 {[%emt 0:03:10]} Rxf5 {[%emt 0:05:32]} 15. f4 {[%emt 0:00:14]} Nf6 {[%emt 0:04:32]} 16. a5 {[%emt 0:08:23]} b5 {[%emt 0:01:03]} 17. cxb5 {[%emt 0:04:50]} axb5 {[%emt 0:00:12]} 18. Nxb5 {[%emt 0:00:26]} Na6 {[%emt 0:02:12]} 19. Qc2 {[%emt 0:05:13]} Nxd5 {[%emt 0:02:05]} 20. Bc4 {[%emt 0:00:22]} Rb8 {[%emt 0:00:47]} 21. Qd3 {[%emt 0:03:09]} Kh8 {[%emt 0:01:51]} 22. Bxd5 {[%emt 0:00:06]} Rxd5 {[%emt 0:00:41]} 23. Qxd5 {[%emt 0:00:05]} Qxb5 {[%emt 0:00:06]} 24. Qe4 {[%emt 0:03:20]} Nb4 {[%emt 0:00:43]} 25. Bd2 {[%emt 0:04:16]} d5 {[%emt 0:00:24]} 26. Qxe7 {[%emt 0:00:09]} Re8 {[%emt 0:00:28]} 27. Qg5 {[%emt 0:00:04]} Nc2 {[%emt 0:00:37]} 28. Qxd5 {[%emt 0:04:58]} Nxa1 {[%emt 0:00:23]} 29. Rxa1 {[%emt 0:00:03]} Bxb2 {[%emt 0:00:49]} 30. Rb1 {[%emt 0:00:41]} Qa6 {[%emt 0:00:29]} 31. Be3 {[%emt 0:05:36]} Bg7 {[%emt 0:00:33]} 32. Qxc5 {[%emt 0:00:32]} Qd3 {[%emt 0:00:22]} 33. Qb5 {[%emt 0:00:42]} Qe4+ {[%emt 0:00:23]} 34. Kg1 {[%emt 0:00:05]} g5 {[%emt 0:00:28]} 35. Rb4 {[%emt 0:01:02]} Qe6 {[%emt 0:00:46]} 36. f5 {[%emt 0:00:20]} Qe7 {[%emt 0:00:31]} 37. a6 {[%emt 0:00:13]} Bc3 {[%emt 0:00:30]} 38. Ra4 {[%emt 0:01:10]} Rd8 {[%emt 0:00:32]} 39. a7 {[%emt 0:00:46]} Qf8 {[%emt 0:00:18]} 40. Qc6 {[%emt 0:00:36]} Qxf5 {[%emt 0:00:41]} 41. Qxc3+ {[%emt 0:00:08]} Kg8 {[%emt 0:00:29]} 42. Qc4+ {[%emt 0:00:52]} Kg7 {[%emt 0:00:20]} 43. Qc7+ {[%emt 0:00:38]} Rd7 {[%emt 0:00:41]} 44. Qxd7+ {[%emt 0:00:25]} Qxd7 {[%emt 0:00:31]} 45. a8=Q {[%emt 0:00:23]} 1-0

[Event "84th ESP-ch 2019"]
[Site "Marbella"]
[Date "2019.11.19"]
[Round "4.11"]
[White "Asis Gargatagli, Hipolito"]
[Black "Mingarro Carceller, Sergi"]
[Result "1-0"]
[ECO "B53"]
[WhiteElo "2497"]
[BlackElo "2329"]
[Annotator "ChessBase"]
[PlyCount "85"]
[EventDate "2019.11.16"]
[EventType "swiss"]
[EventCountry "ESP"]
[SourceTitle "playchess.com"]
[Source "ChessBase"]
[SourceQuality "1"]
[TimeControl "5400+30"]

1. e4 {[%emt 0:00:00]} c5 {[%emt 0:00:00]} 2. Nf3 {[%emt 0:00:00]} d6 {[%emt 0:00:00]} 3. d4 {[%emt 0:00:00]} cxd4 {[%emt 0:00:03]} 4. Qxd4 {[%emt 0:00:00]} a6 {[%emt 0:02:31]} 5. Be2 {[%emt 0:00:31]} Nc6 {[%emt 0:00:26]} 6. Qe3 {[%emt 0:00:12]} g6 {[%emt 0:03:22]} 7. O-O {[%emt 0:00:31]} Bg7 {[%emt 0:00:20]} 8. h3 {[%emt 0:02:55]} Nf6 {[%emt 0:01:07]} 9. c4 {[%emt 0:01:06]} O-O {[%emt 0:00:49]} 10. Rd1 {[%emt 0:01:57]} Nd7 {[%emt 0:02:45]} 11. Nc3 {[%emt 0:00:41]} Nc5 {[%emt 0:01:27]} 12. Bd2 {[%emt 0:02:51]} e5 {[%emt 0:08:47]} 13. Be1 {[%emt 0:16:47]} f5 {[%emt 0:11:58]} 14. Rac1 {[%emt 0:29:19]} f4 {[%emt 0:14:19]} 15. Qd2 {[%emt 0:00:06]} Nd4 {[%emt 0:00:13]} 16. Nxd4 {[%emt 0:07:27]} exd4 {[%emt 0:01:38]} 17. Nd5 {[%emt 0:00:06]} Nxe4 {[%emt 0:02:11]} 18. Qa5 {[%emt 0:00:05]} Bd7 {[%emt 0:17:33]} 19. Nb6 {[%emt 0:04:52]} Rf5 {[%emt 0:02:52]} 20. c5 {[%emt 0:00:10]} Rb8 {[%emt 0:13:23]} 21. Nxd7 {[%emt 0:07:47]} Qxd7 {[%emt 0:00:07]} 22. Bg4 {[%emt 0:00:06]} dxc5 {[%emt 0:01:14]} 23. Bxf5 {[%emt 0:11:18]} gxf5 {[%emt 0:02:26]} 24. f3 {[%emt 0:00:58]} b6 {[%emt 0:00:25]} 25. Qxa6 {[%emt 0:00:08]} Nd6 {[%emt 0:00:06]} 26. b4 {[%emt 0:02:39]} c4 {[%emt 0:01:42]} 27. Bf2 {[%emt 0:03:34]} Qe6 {[%emt 0:06:20]} 28. Qa7 {[%emt 0:01:11]} Rb7 {[%emt 0:00:13]} 29. Qa8+ {[%emt 0:00:10]} Kf7 {[%emt 0:00:03]} 30. Rxd4 {[%emt 0:01:57]} Bxd4 {[%emt 0:02:32]} 31. Bxd4 {[%emt 0:00:05]} Rd7 {[%emt 0:00:14]} 32. Qh8 {[%emt 0:01:48]} Kg6 {[%emt 0:02:24]} 33. a4 {[%emt 0:00:43]} Qd5 {[%emt 0:02:00]} 34. Qf6+ {[%emt 0:01:41]} Kh5 {[%emt 0:00:02]} 35. Bf2 {[%emt 0:00:09]} Rf7 {[%emt 0:01:22]} 36. Qh4+ {[%emt 0:00:06]} Kg6 {[%emt 0:00:04]} 37. Qxf4 {[%emt 0:00:08]} Re7 {[%emt 0:00:39]} 38. Bxb6 {[%emt 0:02:35]} Re2 {[%emt 0:00:37]} 39. Bc5 {[%emt 0:00:38]} Nf7 {[%emt 0:00:15]} 40. Qd4 {[%emt 0:01:33]} Qe6 {[%emt 0:00:32]} 41. Qxc4 {[%emt 0:00:30]} Qe8 {[%emt 0:00:34]} 42. Bf2 {[%emt 0:00:43]} Ng5 {[%emt 0:00:23]} 43. Qc6+ {[%emt 0:00:07]} 1-0